bitfinex-derivatives/quotes_BTCF0:USTF0_20250919
["timestamp","ask_amount","ask_price","bid_price","bid_amount"]
[1758298113004,0.8982963,115990.0,115980.0,1.07188962]
[1758298114204,0.8982963,115990.0,115980.0,1.17977642]
[1758298115503,0.8982963,115990.0,115980.0,1.07188962]
[1758298116500,0.002,115990.0,115980.0,1.40807212]
[1758298116806,0.1091454,116030.0,116020.0,0.1225328]
[1758298116999,0.1357854,116030.0,116020.0,1.85598723]
[1758298117204,0.1091454,116030.0,116020.0,1.85598723]
[1758298117501,0.8110654,116030.0,116020.0,1.86675246]
[1758298117703,0.72492,116030.0,116020.0,1.86675246]
[1758298118102,0.029,116030.0,116020.0,1.86675246]
[1758298118405,0.82108,116030.0,116020.0,1.86675246]
[1758298119394,0.82008,116030.0,116020.0,1.86675246]
[1758298121900,0.9062253,116030.0,116020.0,1.86675246]
[1758298122300,0.82008,116030.0,116020.0,1.86675246]
[1758298122510,0.82008,116030.0,116020.0,1.93655367]
[1758298122801,0.797,116030.0,116020.0,1.93655367]
[1758298124316,0.79696,116030.0,116020.0,1.93655367]
[1758298125006,0.01,116030.0,116020.0,1.93655367]
[1758298125406,0.48468,116030.0,116020.0,1.93655367]
[1758298128509,0.5708253,116030.0,116020.0,1.93655367]
[1758298128917,0.8830253,116030.0,116020.0,1.93655367]
[1758298130710,0.0961453,116030.0,116020.0,1.93655367]
[1758298131008,0.61304,116030.0,116020.0,1.93655367]
[1758298131214,0.79684,116030.0,116020.0,1.93655367]
[1758298135608,0.8829853,116030.0,116020.0,1.93655367]
[1758298137307,0.0961453,116030.0,116020.0,1.93655367]
[1758298137510,0.9041953,116030.0,116020.0,0.84768745]
[1758298137718,0.9041953,116030.0,116020.0,1.52225707]
[1758298137912,0.9041953,116030.0,116020.0,1.60840977]
[1758298138815,0.1174353,116030.0,116020.0,1.60840977]
[1758298139019,0.9041953,116030.0,116020.0,1.94569458]
[1758298140823,0.9041953,116030.0,116020.0,1.95611992]
[1758298142026,0.9041953,116030.0,116020.0,0.94426549]
[1758298142320,0.9041953,116030.0,116020.0,1.95611992]
[1758298145518,0.9041953,116030.0,116020.0,1.61883511]
[1758298146416,0.9041953,116030.0,116020.0,1.95611992]
[1758298150835,0.1174353,116030.0,116020.0,1.95611992]
[1758298151031,0.9041553,116030.0,116020.0,1.95611992]
[1758298151726,0.9041553,116030.0,116020.0,1.28123549]
[1758298154340,0.1174353,116030.0,116020.0,1.28123549]
[1758298154526,0.9041553,116030.0,116020.0,1.28123549]
[1758298155832,0.9041553,116030.0,116020.0,1.27081015]
[1758298156023,0.9041553,116030.0,116020.0,0.93384015]
[1758298156226,0.9041553,116030.0,116020.0,1.27081015]
[1758298156737,0.9041553,116030.0,116020.0,0.93384015]
[1758298156944,0.9041553,116030.0,116020.0,1.27081015]
[1758298159333,0.9041553,116030.0,116020.0,1.18465745]
[1758298159636,1.1541553,116030.0,116020.0,1.18465745]
[1758298161834,1.1541553,116030.0,116020.0,0.84768745]
[1758298162034,0.3674353,116030.0,116020.0,1.18465745]
[1758298162225,1.1540753,116030.0,116020.0,1.18465745]
[1758298162622,1.16448495,116030.0,116020.0,1.18465745]
[1758298163734,0.3674353,116030.0,116020.0,1.18465745]
[1758298163936,1.1540753,116030.0,116020.0,1.18465745]
[1758298164134,1.1540753,116030.0,116020.0,0.84768745]
[1758298164333,1.1540753,116030.0,116020.0,1.18465745]
[1758298165235,1.16443966,116030.0,116020.0,1.18465745]
[1758298165529,1.1540753,116030.0,116020.0,1.18465745]
[1758298165737,1.1540753,116030.0,116020.0,1.27081015]
[1758298166533,1.1540753,116030.0,116020.0,1.18465745]
[1758298166926,1.1540753,116030.0,116020.0,1.27081015]
[1758298167631,1.1540753,116030.0,116020.0,1.18465745]
[1758298169730,1.1540753,116030.0,116020.0,1.27081015]
[1758298170333,1.1540353,116030.0,116020.0,1.27081015]
[1758298170531,0.3674353,116030.0,116020.0,1.27081015]
[1758298170732,1.1540353,116030.0,116020.0,1.27081015]
[1758298172338,1.1540353,116030.0,116020.0,1.37883785]
[1758298176749,0.01,116030.0,116020.0,1.96580785]
[1758298177046,0.79656,116030.0,116020.0,1.85778015]
[1758298177542,0.79656,116030.0,116020.0,1.52081015]
[1758298179346,0.79656,116030.0,116020.0,1.27081015]
[1758298179946,0.79656,116030.0,116020.0,1.60778015]
[1758298180448,1.9015706,116050.0,116040.0,0.1227179]
[1758298180746,2.6880906,116050.0,116040.0,1.5182579]
[1758298181750,2.7080906,116050.0,116040.0,1.5192579]
[1758298183247,1.9215706,116050.0,116040.0,1.5192579]
[1758298183448,0.80648,116050.0,116040.0,1.5192579]
[1758298184846,0.79348,116050.0,116040.0,1.5192579]
[1758298185144,0.78848,116050.0,116040.0,1.5182579]
[1758298186646,0.002,116050.0,116040.0,1.5182579]
[1758298186845,0.45888,116050.0,116040.0,1.5182579]
[1758298188647,0.45888,116050.0,116040.0,0.8443179]
[1758298188648,0.5670804,116050.0,116040.0,0.8443179]
[1758298188843,0.5670804,116050.0,116040.0,1.5182579]
[1758298189658,0.58458252,116050.0,116040.0,1.1812879]
[1758298189846,1.17155252,116050.0,116040.0,0.75818]
[1758298190051,1.17155252,116050.0,116040.0,1.09515]
[1758298190259,0.83458252,116050.0,116040.0,1.09515]
[1758298190458,0.37770252,116050.0,116040.0,1.09515]
[1758298190866,1.16406252,116050.0,116040.0,1.09515]
[1758298191161,0.78836,116050.0,116040.0,1.5182579]
[1758298192163,0.8744905,116050.0,116040.0,1.5182579]
[1758298194268,0.8744905,116050.0,116040.0,1.5260879]
[1758298194764,0.002,116050.0,116040.0,1.5260879]
[1758298194967,0.57432,116050.0,116040.0,1.5260879]
[1758298195167,0.6604505,116050.0,116040.0,1.5260879]
[1758298200964,0.0881305,116050.0,116040.0,1.5260879]
[1758298204475,0.0881305,116050.0,116040.0,1.6341156]
[1758298206375,0.0881305,116050.0,116040.0,1.76512554]
[1758298206575,0.0881305,116050.0,116040.0,1.6341156]
[1758298206878,0.0881305,116050.0,116040.0,1.5260879]
[1758298210083,0.0881305,116050.0,116040.0,1.65519859]
[1758298211877,0.0881305,116050.0,116040.0,1.99171679]
[1758298214487,0.0881305,116050.0,116040.0,2.09974449]
[1758298215286,0.0881305,116050.0,116040.0,1.99171679]
[1758298218694,0.0881305,116050.0,116040.0,1.8626061]
[1758298223494,0.0881305,116050.0,116040.0,2.1323061]
[1758298251917,0.0881305,116050.0,116040.0,2.0461682]
[1758298252320,0.0881305,116050.0,116040.0,2.1323059]
[1758298253615,0.0881302,116050.0,116040.0,2.1323059]
[1758298258923,0.0881302,116050.0,116040.0,1.8626059]
[1758298263041,0.1093302,116050.0,116040.0,0.8521477]
[1758298263225,0.1093302,116050.0,116040.0,1.1889671]
[1758298263432,0.0881302,116050.0,116040.0,1.8626059]
[1758298264133,0.0881302,116050.0,116040.0,1.8625659]
[1758298264838,0.0881302,116050.0,116040.0,2.1322659]
[1758298267040,0.8737702,116050.0,116040.0,2.1322659]
[1758298267340,0.0881302,116050.0,116040.0,2.1322659]
[1758298268443,0.0881302,116050.0,116040.0,2.24028697]
[1758298269341,0.0881302,116050.0,116040.0,2.1322659]
[1758298270739,0.0881302,116050.0,116040.0,2.24030026]
[1758298273853,0.0881302,116050.0,116040.0,1.90342766]
[1758298274145,0.0881302,116050.0,116040.0,1.7953933]
[1758298274752,0.0881303,116050.0,116040.0,1.7953933]
[1758298275252,0.002,116050.0,116040.0,1.7953933]
[1758298275753,0.0881303,116050.0,116040.0,1.7953933]
[1758298276255,0.0881303,116050.0,116040.0,1.90338677]
[1758298279156,0.0881303,116050.0,116040.0,1.90326677]
[1758298283352,0.0881303,116050.0,116040.0,1.7952733]
[1758298285762,0.0881303,116050.0,116040.0,1.90319097]
[1758298287058,0.0881303,116050.0,116040.0,1.7952733]
[1758298294367,0.0881303,116050.0,116040.0,1.7952333]
[1758298299270,0.0881303,116050.0,116040.0,1.90319752]
[1758298299663,0.0881303,116050.0,116040.0,1.7952333]
[1758298300170,0.0881303,116050.0,116040.0,1.1216477]
[1758298300376,0.0881303,116050.0,116040.0,1.7952333]
[1758298300869,0.0881303,116050.0,116040.0,1.48028404]
[1758298301076,0.3381303,116050.0,116040.0,1.14349124]
[1758298301278,1.1233303,116050.0,116040.0,1.03551]
[1758298301469,1.1233303,116050.0,116040.0,1.3723028]
[1758298303380,1.1233303,116050.0,116040.0,1.48028404]
[1758298303976,1.1233303,116050.0,116040.0,1.21058404]
[1758298304175,1.1456003,116050.0,116040.0,0.76581]
[1758298304382,0.3604003,116050.0,116040.0,1.1026028]
[1758298304772,1.1455603,116050.0,116040.0,1.1026028]
[1758298307282,0.3604003,116050.0,116040.0,1.1026028]
[1758298307472,1.1455603,116050.0,116040.0,1.1026028]
[1758298311591,0.3604003,116050.0,116040.0,1.1026028]
[1758298311894,1.1455203,116050.0,116040.0,1.1026028]
[1758298312796,0.3604003,116050.0,116040.0,1.1026028]
[1758298313094,1.1455203,116050.0,116040.0,1.1026028]
[1758298313294,0.3604003,116050.0,116040.0,1.1026028]
[1758298313495,1.1455203,116050.0,116040.0,1.1026028]
[1758298315595,0.3604003,116050.0,116040.0,1.1026028]
[1758298316098,1.1454803,116050.0,116040.0,1.1026028]
[1758298316296,0.3604003,116050.0,116040.0,1.1026028]
[1758298317298,1.1454803,116050.0,116040.0,1.1026028]
[1758298321497,1.1563903,116050.0,116040.0,0.20482]
[1758298321701,1.1563903,116050.0,116030.0,4e-08]
[1758298321702,0.1079878,116040.0,116030.0,4e-08]
[1758298322000,0.1080027,116020.0,116010.0,0.03499]
[1758298322196,1.2298355,116020.0,116010.0,0.03499]
[1758298322406,0.1080101,116010.0,116000.0,0.3959]
[1758298322593,0.8930501,116010.0,116000.0,0.7326928]
[1758298323403,0.1080101,116010.0,116000.0,0.7326928]
[1758298324108,0.8930501,116010.0,116000.0,0.7326928]
[1758298324407,0.8930901,116010.0,116000.0,0.74196881]
[1758298324596,0.8930901,116010.0,116000.0,0.74496881]
[1758298324997,0.1080101,116010.0,116000.0,0.74496881]
[1758298325193,0.8930901,116010.0,116000.0,0.74496881]
[1758298328609,0.8930901,116010.0,116000.0,0.74196881]
[1758298328809,0.8930901,116010.0,116000.0,0.74396881]
[1758298329303,0.8940901,116010.0,116000.0,0.74396881]
[1758298329711,1.2308829,116010.0,116000.0,0.3979]
[1758298331110,1.2417929,116010.0,116000.0,0.3979]
[1758298332212,1.2308829,116010.0,116000.0,0.3979]
[1758298333815,1.23128484,116010.0,116000.0,0.73509474]
[1758298334108,1.23128484,116010.0,116000.0,0.3979]
[1758298334410,1.23128484,116010.0,116000.0,0.73509474]
[1758298339008,0.8940901,116010.0,116000.0,0.39782]
[1758298339215,1.23128484,116010.0,116000.0,0.73497474]
[1758298339611,0.8940901,116010.0,116000.0,0.73497474]
[1758298339814,1.23128484,116010.0,116000.0,0.73497474]
[1758298340916,1.23128484,116010.0,116000.0,0.39778]
[1758298341117,1.23128484,116010.0,116000.0,0.73497474]
[1758298343513,1.23128484,116010.0,116000.0,0.39778]
[1758298343818,1.82950958,116010.0,116000.0,0.002]
[1758298344024,1.49231484,116010.0,116000.0,0.002]
[1758298346110,0.70723484,116010.0,116000.0,0.002]
[1758298346311,1.49231484,116010.0,116000.0,0.002]
[1758298346618,1.85311484,116010.0,116000.0,0.002]
[1758298347013,1.06803484,116010.0,116000.0,0.002]
[1758298347218,1.85311484,116010.0,116000.0,0.02373]
[1758298347616,1.85311484,116010.0,116000.0,0.36092474]
[1758298348822,1.85311484,116010.0,116000.0,0.02373]
[1758298349020,1.85311484,116010.0,116000.0,0.36092474]
[1758298349315,1.8794423,116010.0,116000.0,0.36092474]
[1758298349824,1.8794423,116010.0,116000.0,0.02373]
[1758298350124,1.8794423,116010.0,116000.0,0.36092474]
[1758298350320,1.0943623,116010.0,116000.0,0.36092474]
[1758298350623,1.0943623,116010.0,116000.0,0.02373]
[1758298350624,1.8794023,116010.0,116000.0,0.02373]
[1758298352314,1.0943623,116010.0,116000.0,0.02373]
[1758298353227,1.8793623,116010.0,116000.0,0.02373]
[1758298353922,1.0943623,116010.0,116000.0,0.02373]
[1758298354121,1.8793623,116010.0,116000.0,0.02373]
[1758298354326,1.8793623,116010.0,116000.0,0.36092474]
[1758298355728,1.8793623,116010.0,116000.0,0.02373]
[1758298357227,1.54216756,116010.0,116000.0,0.02373]
[1758298357425,1.8793623,116010.0,116000.0,0.02373]
[1758298358329,1.54216756,116010.0,116000.0,0.02373]
[1758298358627,1.8793623,116010.0,116000.0,0.02373]
[1758298359527,1.6293623,116010.0,116000.0,0.02373]
[1758298360424,1.60303484,116010.0,116000.0,0.02373]
[1758298360822,1.62894004,116010.0,116000.0,0.02373]
[1758298361021,1.60303484,116010.0,116000.0,0.02373]
[1758298364129,1.60303484,116010.0,116000.0,0.002]
[1758298365524,1.94022958,116010.0,116000.0,1e-07]
[1758298365730,2.21590394,116010.0,116000.0,1e-07]
[1758298366428,1.43090394,116010.0,116000.0,1e-07]
[1758298366627,2.21574394,116010.0,116000.0,1e-07]
[1758298366824,1.43090394,116010.0,116000.0,1e-07]
[1758298367027,2.21574394,116010.0,116000.0,1e-07]
[1758298367825,0.0861749,115990.0,115980.0,0.74262132]
[1758298368036,1.23131964,115990.0,115980.0,0.73317474]
[1758298368938,1.23131964,115990.0,115980.0,0.39598]
[1758298369834,1.23131964,115990.0,115980.0,0.73317474]
[1758298370426,1.23131964,115990.0,115980.0,0.73517474]
[1758298370626,1.23131964,115990.0,115980.0,0.74447524]
[1758298370828,1.23131964,115990.0,115980.0,0.74247524]
[1758298371032,1.23131964,115990.0,115980.0,0.39698]
[1758298371938,1.24210964,115990.0,115980.0,0.39698]
[1758298372232,0.45726964,115990.0,115980.0,0.39698]
[1758298372432,1.24210964,115990.0,115980.0,0.39698]
[1758298374930,1.23127964,115990.0,115980.0,0.39698]
[1758298380736,0.8940849,115990.0,115980.0,0.73417474]
[1758298380945,0.1092849,115990.0,115980.0,1.32136948]
[1758298381434,0.8709349,115990.0,115980.0,1.74474652]
[1758298381634,0.8709349,115990.0,115980.0,1.76506644]
[1758298381839,0.8709349,115990.0,115980.0,1.4278717]
[1758298382037,0.0861749,115990.0,115980.0,1.4278717]
[1758298382343,0.42335484,116010.0,115980.0,1.4278717]
[1758298382344,0.0861726,116000.0,115990.0,0.1228149]
[1758298382541,0.8709326,116000.0,115990.0,1.15800438]
[1758298382748,0.8709326,116000.0,115990.0,0.4836149]
[1758298383044,0.0861726,116000.0,115990.0,1.15800438]
[1758298383247,0.8709326,116000.0,115990.0,1.15800438]
[1758298383942,0.8709326,116000.0,115990.0,1.07182948]
[1758298384138,0.8719326,116000.0,115990.0,1.07178948]
[1758298385146,0.8719326,116000.0,115990.0,1.07278948]
[1758298385945,0.8709326,116000.0,115990.0,1.07278948]
[1758298386246,0.8708926,116000.0,115990.0,1.15896438]
[1758298386546,0.8708926,116000.0,115990.0,1.07278948]
[1758298390542,0.8708926,116000.0,115990.0,1.15896438]
[1758298390738,0.8708126,116000.0,115990.0,1.15896438]
[1758298390944,0.0861726,116000.0,115990.0,1.15896438]
[1758298391245,0.0861726,116000.0,115990.0,1.40896438]
[1758298391448,0.086166,116010.0,116000.0,0.122803]
[1758298391649,0.870806,116010.0,116000.0,1.15799248]
[1758298392954,0.871806,116010.0,116000.0,1.15799248]
[1758298394859,0.871806,116010.0,116000.0,1.15999248]
[1758298395459,0.871806,116010.0,116000.0,1.07382948]
[1758298395658,0.871806,116010.0,116000.0,1.15999688]
[1758298395860,0.871806,116010.0,116000.0,0.82266079]
[1758298395861,0.893426,116010.0,116000.0,0.82266079]
[1758298396053,0.892426,116010.0,116000.0,0.82266079]
[1758298399870,0.892426,116010.0,116000.0,0.73649339]
[1758298404473,0.870806,116010.0,116000.0,0.73649339]
[1758298404674,0.893376,116010.0,116000.0,0.73649339]
[1758298409081,0.893096,116010.0,116000.0,0.73649339]
[1758298412876,0.893096,116010.0,116000.0,0.39944]
[1758298413182,1.23014939,116010.0,116000.0,0.39944]
[1758298414984,0.893096,116010.0,116000.0,0.39944]
[1758298415981,0.893096,116010.0,116000.0,0.73649339]
[1758298417089,0.108736,116010.0,116000.0,0.73649339]
[1758298417485,0.892976,116010.0,116000.0,0.73649339]
[1758298417685,0.108736,116010.0,116000.0,0.73649339]
[1758298417887,0.892976,116010.0,116000.0,0.73649339]
[1758298419190,0.892976,116010.0,116000.0,0.39944]
[1758298419390,0.892976,116010.0,116000.0,0.73649339]
[1758298419589,0.108736,116010.0,116000.0,0.73649339]
[1758298419788,0.892976,116010.0,116000.0,0.73649339]
[1758298430691,0.892896,116010.0,116000.0,0.73649339]
[1758298431399,0.108736,116010.0,116000.0,0.73649339]
[1758298431596,0.892896,116010.0,116000.0,0.73649339]
[1758298437204,0.108736,116010.0,116000.0,0.73649339]
[1758298437406,0.892856,116010.0,116000.0,0.73649339]
[1758298438210,0.108736,116010.0,116000.0,0.73649339]
[1758298438403,0.892816,116010.0,116000.0,0.73649339]
[1758298438702,0.108736,116010.0,116000.0,0.73649339]
[1758298439099,0.892816,116010.0,116000.0,0.73649339]
[1758298441100,0.892816,116010.0,116000.0,0.82266089]
[1758298441408,0.108736,116010.0,116000.0,0.82266089]
[1758298441705,0.870246,116010.0,116000.0,1.17949111]
[1758298441894,0.870246,116010.0,116000.0,0.84243772]
[1758298443414,0.870246,116010.0,116000.0,0.50538433]
[1758298443608,0.870246,116010.0,116000.0,0.84243772]
[1758298445214,0.870206,116010.0,116000.0,0.84243772]
[1758298446499,0.893456,116010.0,116000.0,0.84243772]
[1758298447104,0.893456,116010.0,116000.0,0.84243762]
[1758298447506,0.893456,116010.0,116000.0,0.50838423]
[1758298447712,0.893456,116010.0,116000.0,0.75927022]
[1758298448210,0.893456,116010.0,116000.0,0.84743762]
[1758298452408,0.109416,116010.0,116000.0,0.84743762]
[1758298452607,0.893416,116010.0,116000.0,0.84743762]
[1758298453717,0.109416,116010.0,116000.0,0.84743762]
[1758298454015,0.893416,116010.0,116000.0,0.84743762]
[1758298457816,0.893416,116010.0,116000.0,1.18452767]
[1758298462218,0.893336,116010.0,116000.0,1.18452767]
[1758298464120,0.109416,116010.0,116000.0,1.18452767]
[1758298464320,0.893336,116010.0,116000.0,1.18452767]
[1758298466019,0.1089747,116020.0,116010.0,0.1205]
[1758298466223,0.8700747,116020.0,116010.0,1.15544344]
[1758298467521,0.8700747,116020.0,116010.0,1.15644344]
[1758298467719,0.8700747,116020.0,116010.0,1.2259406]
[1758298470421,0.8700347,116020.0,116010.0,1.2259406]
[1758298474032,0.0861472,116030.0,116020.0,0.0861525]
[1758298474238,0.0861472,116030.0,116020.0,1.49250766]
[1758298474534,0.0861472,116030.0,116020.0,1.74250766]
[1758298475535,0.0861472,116030.0,116020.0,1.40543594]
[1758298477933,0.0861472,116030.0,116020.0,1.41329594]
[1758298478932,0.44603892,116030.0,116020.0,1.07714344]
[1758298479138,0.69603892,116030.0,116020.0,0.403]
[1758298479436,0.44603892,116030.0,116020.0,0.74007172]
[1758298481040,0.44603892,116030.0,116020.0,0.403]
[1758298481240,0.44603892,116030.0,116020.0,0.74007172]
[1758298482242,0.1089672,116030.0,116020.0,1.07714344]
[1758298482442,0.44603892,116030.0,116020.0,1.07714344]
[1758298483042,0.1089672,116030.0,116020.0,1.07714344]
[1758298484838,0.8926472,116030.0,116020.0,1.07714344]
[1758298485838,0.0861472,116030.0,116020.0,1.50036776]
[1758298488547,0.8697872,116030.0,116020.0,1.50036776]
[1758298491655,0.8697872,116030.0,116020.0,1.16329604]
[1758298491849,0.8697872,116030.0,116020.0,1.07714344]
[1758298493153,0.8926072,116030.0,116020.0,1.07714344]
[1758298493347,0.8926072,116030.0,116020.0,1.16329604]
[1758298505262,0.8926072,116030.0,116020.0,1.07714344]
[1758298505461,1.22967892,116030.0,116020.0,0.403]
[1758298505664,0.69603892,116030.0,116020.0,0.403]
[1758298505956,1.47951892,116030.0,116020.0,0.74007172]
[1758298506161,1.1424472,116030.0,116020.0,0.74007172]
[1758298506357,1.47951892,116030.0,116020.0,0.74007172]
[1758298506567,1.47951892,116030.0,116020.0,1.07714344]
[1758298507156,1.47951892,116030.0,116020.0,0.74007172]
[1758298508765,1.47951892,116030.0,116020.0,0.403]
[1758298509161,1.47951892,116030.0,116020.0,0.36614172]
[1758298509856,1.47951892,116030.0,116020.0,0.02907]
[1758298510058,1.47951892,116030.0,116020.0,0.36614172]
[1758298515467,0.3589672,116030.0,116020.0,0.71600344]
[1758298515651,1.1428072,116030.0,116020.0,0.71600344]
[1758298515964,1.47999892,116030.0,116020.0,0.71600344]
[1758298516466,0.69603892,116030.0,116020.0,0.71600344]
[1758298516969,1.47999892,116030.0,116020.0,0.71600344]
[1758298518265,0.69603892,116030.0,116020.0,0.71600344]
[1758298518463,1.47991892,116030.0,116020.0,0.71600344]
[1758298519159,0.3589672,116030.0,116020.0,0.71600344]
[1758298519368,1.47983892,116030.0,116020.0,0.71600344]
[1758298519754,1.1427672,116030.0,116020.0,0.37888261]
[1758298520868,0.3589672,116030.0,116020.0,0.37888261]
[1758298521069,1.1426872,116030.0,116020.0,0.37888261]
[1758298521263,0.1089672,116030.0,116020.0,0.46503531]
[1758298521566,0.1089672,116030.0,116020.0,0.82583531]
[1758298521756,0.8926472,116030.0,116020.0,0.73968261]
[1758298522866,0.8926472,116030.0,116020.0,0.40266]
[1758298523067,0.8926472,116030.0,116020.0,0.73968261]
[1758298524767,0.1089672,116030.0,116020.0,0.82583541]
[1758298524971,0.8925672,116030.0,116020.0,0.82583541]
[1758298528365,0.8925672,116030.0,116020.0,0.73968261]
[1758298528966,0.8925672,116030.0,116020.0,0.82583541]
[1758298530370,0.8696253,116030.0,116020.0,1.07583541]
[1758298530874,0.8696253,116030.0,116020.0,2.57583541]
[1758298532276,0.10383064,116040.0,116030.0,0.1220053]
[1758298532470,0.88731064,116040.0,116030.0,0.81982791]
[1758298533567,0.88731064,116040.0,116030.0,0.82882016]
[1758298534469,0.88831064,116040.0,116030.0,0.82882016]
[1758298534871,0.78548,116040.0,116030.0,0.82882016]
[1758298535978,0.8716204,116040.0,116030.0,0.82882016]
[1758298537684,0.8936479,116040.0,116030.0,0.84875446]
[1758298538085,0.8936479,116040.0,116030.0,0.93306446]
[1758298540286,0.8936479,116040.0,116030.0,0.94092446]
[1758298544586,0.0881378,116040.0,116030.0,0.94092446]
[1758298544783,0.8714978,116040.0,116030.0,0.94092446]
[1758298546183,0.8935678,116040.0,116030.0,0.94092446]
[1758298548576,0.8935678,116040.0,116030.0,0.60390185]
[1758298548882,0.8935678,116040.0,116030.0,0.85477916]
[1758298549483,0.8935678,116040.0,116030.0,0.94092446]
[1758298551483,0.8935678,116040.0,116030.0,0.85477916]
[1758298551886,0.8935678,116040.0,116030.0,0.77046916]
[1758298552488,1.48059041,116040.0,116030.0,0.41351225]
[1758298552992,1.1435678,116040.0,116030.0,0.41351225]
[1758298553293,0.3602078,116040.0,116030.0,0.75053486]
[1758298553486,1.1434878,116040.0,116030.0,0.75053486]
[1758298558491,1.1434878,116040.0,116030.0,0.41351225]
[1758298558690,1.1434878,116040.0,116030.0,0.75053486]
[1758298561501,1.16102498,116040.0,116030.0,0.75053486]
[1758298562717,1.16002498,116040.0,116030.0,0.75053486]
[1758298563118,1.15902498,116040.0,116030.0,0.75053486]
[1758298564920,1.1414878,116040.0,116030.0,0.77037904]
[1758298565819,1.0414878,116040.0,116030.0,0.43335643]
[1758298566120,1.1276256,116040.0,116030.0,0.77037904]
[1758298566515,1.1276256,116040.0,116030.0,0.43335643]
[1758298566718,1.1276256,116040.0,116030.0,0.77037904]
[1758298569922,1.1276256,116040.0,116030.0,0.43335643]
[1758298570310,1.1276256,116040.0,116030.0,0.77037904]
[1758298572424,1.1284656,116040.0,116030.0,0.77037904]
[1758298575128,1.1287056,116040.0,116030.0,0.77037904]
[1758298575728,1.1286656,116040.0,116030.0,0.77037904]
[1758298576626,0.0943456,116040.0,116030.0,0.85652434]
[1758298576823,0.8785856,116040.0,116030.0,0.85652434]
[1758298579828,0.8785856,116040.0,116030.0,1.19327139]
[1758298595141,0.8694578,116040.0,116030.0,1.19327139]
[1758298601239,0.0861379,116040.0,116030.0,1.78015622]
[1758298601445,0.8694579,116040.0,116030.0,1.78115622]
[1758298601745,0.8694579,116040.0,116030.0,1.44427139]
[1758298601944,0.8694579,116040.0,116030.0,1.42215139]
[1758298603341,0.086131,116050.0,116040.0,0.03661]
[1758298603546,0.11647228,116060.0,116050.0,0.1227405]
[1758298603742,0.86831228,116060.0,116050.0,1.15731016]
[1758298605242,0.11647228,116060.0,116050.0,1.22612191]
[1758298605449,0.0989083,116070.0,116060.0,0.1227331]
[1758298605643,0.8821883,116070.0,116060.0,1.49418759]
[1758298605838,0.8821883,116070.0,116060.0,1.15730276]
[1758298606445,0.8821883,116070.0,116060.0,0.4835331]
[1758298606645,0.8821883,116070.0,116060.0,1.15730276]
[1758298606843,0.8821883,116070.0,116060.0,1.16515276]
[1758298607051,0.8841883,116070.0,116060.0,1.16515276]
[1758298607249,0.0881183,116070.0,116060.0,1.16515276]
[1758298607452,0.8713556,116070.0,116060.0,1.50203759]
[1758298607943,0.8763556,116070.0,116060.0,1.50203759]
[1758298609546,0.7902,116070.0,116060.0,1.75203759]
[1758298610646,0.007,116070.0,116060.0,1.75203759]
[1758298610845,0.7902,116070.0,116060.0,1.75203759]
[1758298612848,0.0861041,116090.0,116080.0,0.1222635]
[1758298613045,0.8692641,116090.0,116080.0,1.51763316]
[1758298613548,0.78316,116100.0,116090.0,0.1222607]
[1758298613754,0.8820433,116100.0,116090.0,1.15683036]
[1758298613947,1.1320433,116100.0,116090.0,0.75350298]
[1758298614254,1.46892813,116100.0,116090.0,0.75350298]
[1758298614649,1.1400433,116100.0,116090.0,0.75350298]
[1758298615754,1.1400433,116100.0,116090.0,0.41661815]
[1758298615955,1.1400433,116100.0,116090.0,0.75350298]
[1758298616254,1.1430433,116100.0,116090.0,0.76229776]
[1758298617860,0.3599233,116100.0,116090.0,1.18528339]
[1758298618057,0.8801733,116100.0,116090.0,1.18528339]
[1758298618858,0.8801733,116100.0,116090.0,1.25512526]
[1758298619954,0.8801733,116100.0,116090.0,1.16902446]
[1758298621361,0.8801733,116100.0,116090.0,0.83213963]
[1758298621362,1.22984813,116100.0,116090.0,0.83213963]
[1758298621556,1.22984813,116100.0,116090.0,0.4952548]
[1758298621755,1.22984813,116100.0,116090.0,0.83213963]
[1758298622558,1.81673296,116100.0,116090.0,0.06984187]
[1758298622755,1.81673296,116100.0,116080.0,0.71084483]
[1758298622756,0.0988908,116090.0,116080.0,0.71084483]
[1758298622955,0.43577563,116090.0,116080.0,0.35004483]
[1758298623158,0.43577563,116090.0,116080.0,0.71084483]
[1758298623460,0.43577563,116090.0,116080.0,0.73217483]
[1758298623658,0.43577563,116090.0,116080.0,0.74091226]
[1758298624063,0.43577563,116090.0,116080.0,0.38269743]
[1758298624265,0.43777563,116090.0,116080.0,0.38269743]
[1758298624461,0.43977563,116090.0,116080.0,0.38269743]
[1758298625062,0.43977563,116090.0,116080.0,0.40402743]
[1758298626166,1.22273563,116090.0,116080.0,0.40402743]
[1758298627764,0.8858508,116090.0,116080.0,0.40402743]
[1758298627962,1.22273563,116090.0,116080.0,0.40402743]
[1758298629673,1.80962046,116090.0,116080.0,0.38269743]
[1758298630060,1.47273563,116090.0,116080.0,0.38269743]
[1758298631567,1.47273563,116090.0,116080.0,0.41187743]
[1758298631767,1.47273563,116090.0,116080.0,0.39054743]
[1758298632268,1.47273563,116090.0,116080.0,0.41187743]
[1758298632880,1.1358508,116090.0,116080.0,0.41187743]
[1758298633084,1.47273563,116090.0,116080.0,0.41187743]
[1758298633881,1.02666046,116090.0,116080.0,0.39054743]
[1758298634086,1.47273563,116090.0,116080.0,0.39054743]
[1758298634273,0.68977563,116090.0,116080.0,0.39054743]
[1758298634479,1.47273563,116090.0,116080.0,0.41187743]
[1758298635574,1.47273563,116090.0,116080.0,0.37738743]
[1758298636286,1.47273563,116090.0,116080.0,0.39871743]
[1758298636581,1.47273563,116090.0,116080.0,0.41194743]
[1758298636782,1.47273563,116090.0,116080.0,0.05114743]
[1758298638288,1.55962046,116090.0,116080.0,0.00785]
[1758298638577,0.0989056,116070.0,116060.0,0.64424]
[1758298638790,0.78066526,116070.0,116060.0,0.2697]
[1758298638990,1.56362526,116070.0,116060.0,0.2697]
[1758298639179,1.22674043,116070.0,116060.0,0.29103]
[1758298639380,1.21875043,116070.0,116060.0,0.30426]
[1758298639681,0.43579043,116070.0,116060.0,0.30426]
[1758298640082,0.77267526,116070.0,116060.0,0.002]
[1758298640379,0.77267526,116070.0,116060.0,0.01115369]
[1758298640380,1.55563526,116070.0,116060.0,0.01115369]
[1758298640582,1.21875043,116070.0,116060.0,0.01115369]
[1758298640781,1.21875043,116070.0,116060.0,0.04571369]
[1758298641884,1.218719,116070.0,116060.0,0.04571369]
[1758298642484,0.435759,116070.0,116060.0,0.04571369]
[1758298642686,1.218759,116070.0,116060.0,0.04571369]
[1758298643086,0.435759,116070.0,116060.0,0.04571369]
[1758298643381,0.435759,116070.0,116060.0,0.01115369]
[1758298644081,0.435759,116070.0,116060.0,0.04784369]
[1758298644280,1.218759,116070.0,116060.0,0.04784369]
[1758298644682,1.218759,116070.0,116060.0,0.01115369]
[1758298644884,1.218759,116070.0,116060.0,0.002]